[Event "Biel DQA Blitzn"]
[Site "Biel/Bienne, Switzerland"]
[Date "2022.07.17"]
[Round "13.3"]
[White "Moracchini, Margaux"]
[Black "Avilova, Yulia"]
[Result "0-1"]
[TimeControl "3 min + 2 sec"]
[WhiteElo "1825"]
[BlackElo "1597"]

1. e4 {[%clk 00:03:03]} c5 {[%clk 00:03:03]} {[%emt 00:00:01]} 2. c3 {[%clk
00:03:03]} {[%emt 00:00:02]} d6 {[%clk 00:03:04]} {[%emt 00:00:02]} 3. d4
{[%clk 00:02:59]} {[%emt 00:00:06]} cxd4 {[%clk 00:03:05]} {[%emt 00:00:01]} 4.
cxd4 {[%clk 00:03:00]} Nf6 {[%clk 00:03:06]} 5. Nc3 {[%clk 00:02:58]} {[%emt
00:00:04]} e6 {[%clk 00:03:07]} {[%emt 00:00:02]} 6. g3 {[%clk 00:02:51]}
{[%emt 00:00:08]} a6 {[%clk 00:03:08]} {[%emt 00:00:01]} 7. a4 {[%clk
00:02:48]} {[%emt 00:00:05]} Be7 {[%clk 00:03:08]} {[%emt 00:00:01]} 8. Bg2
{[%clk 00:02:49]} O-O {[%clk 00:03:08]} {[%emt 00:00:02]} 9. Nge2 {[%clk
00:02:50]} {[%emt 00:00:01]} Qc7 {[%clk 00:03:01]} {[%emt 00:00:10]} 10. O-O
{[%clk 00:02:49]} {[%emt 00:00:02]} Nc6 {[%clk 00:03:02]} {[%emt 00:00:02]} 11.
h3 {[%clk 00:02:47]} {[%emt 00:00:03]} b6 {[%clk 00:03:03]} {[%emt 00:00:02]}
12. Be3 {[%clk 00:02:34]} {[%emt 00:00:16]} Bb7 {[%clk 00:03:04]} {[%emt
00:00:01]} 13. f4 {[%clk 00:02:27]} {[%emt 00:00:09]} e5 {[%clk 00:02:52]}
{[%emt 00:00:13]} 14. d5 {[%clk 00:02:18]} {[%emt 00:00:11]} Nb8 {[%clk
00:02:47]} {[%emt 00:00:08]} 15. fxe5 {[%clk 00:02:08]} {[%emt 00:00:12]} dxe5
{[%clk 00:02:46]} {[%emt 00:00:03]} 16. Rc1 {[%clk 00:02:07]} {[%emt 00:00:03]}
Qd8 {[%clk 00:02:45]} {[%emt 00:00:03]} 17. Qb3 {[%clk 00:02:02]} {[%emt
00:00:08]} Nbd7 {[%clk 00:02:44]} {[%emt 00:00:02]} 18. Kh2 {[%clk 00:01:55]}
{[%emt 00:00:09]} Nc5 {[%clk 00:02:45]} {[%emt 00:00:01]} 19. Qc2 {[%clk
00:01:45]} {[%emt 00:00:12]} Rc8 {[%clk 00:02:41]} {[%emt 00:00:07]} 20. g4
{[%clk 00:01:34]} {[%emt 00:00:13]} Qd7 {[%clk 00:02:35]} {[%emt 00:00:08]} 21.
Ng3 {[%clk 00:01:28]} {[%emt 00:00:08]} b5 {[%clk 00:02:33]} {[%emt 00:00:04]}
22. axb5 {[%clk 00:01:28]} {[%emt 00:00:02]} axb5 {[%clk 00:02:34]} {[%emt
00:00:01]} 23. Qe2 {[%clk 00:01:06]} {[%emt 00:00:24]} b4 {[%clk 00:02:30]}
{[%emt 00:00:06]} 24. Bxc5 {[%clk 00:00:59]} {[%emt 00:00:08]} Bxc5 {[%clk
00:02:29]} {[%emt 00:00:03]} 25. Nd1 {[%clk 00:00:46]} {[%emt 00:00:15]} Qd6
{[%clk 00:02:20]} {[%emt 00:00:12]} 26. g5 {[%clk 00:00:42]} {[%emt 00:00:06]}
Ba6 {[%clk 00:02:17]} {[%emt 00:00:04]} 27. Qf3 {[%clk 00:00:36]} {[%emt
00:00:06]} Bxf1 {[%clk 00:02:17]} {[%emt 00:00:03]} 28. gxf6 {[%clk 00:00:32]}
{[%emt 00:00:07]} Bxg2 {[%clk 00:02:15]} {[%emt 00:00:04]} 29. Qxg2 {[%clk
00:00:33]} Qxf6 {[%clk 00:02:15]} {[%emt 00:00:03]} 30. Nh5 {[%clk 00:00:26]}
{[%emt 00:00:09]} Qh6 {[%clk 00:02:14]} {[%emt 00:00:03]} 31. Ng3 {[%clk
00:00:24]} {[%emt 00:00:04]} Qxc1 {[%clk 00:02:12]} {[%emt 00:00:03]} 32. Nf5
{[%clk 00:00:24]} {[%emt 00:00:02]} Qf4+ {[%clk 00:02:09]} {[%emt 00:00:05]} 33.
Kh1 {[%clk 00:00:23]} {[%emt 00:00:03]} g5 {[%clk 00:02:07]} {[%emt 00:00:04]}
34. h4 {[%clk 00:00:21]} {[%emt 00:00:05]} f6 {[%clk 00:02:05]} {[%emt
00:00:03]} 35. hxg5 {[%clk 00:00:17]} {[%emt 00:00:05]} fxg5 {[%clk 00:02:06]}
{[%emt 00:00:02]} 36. Nh6+ {[%clk 00:00:09]} {[%emt 00:00:10]} Kh8 {[%clk
00:02:03]} {[%emt 00:00:04]} 37. b3 {[%clk 00:00:09]} {[%emt 00:00:02]} Qh4+
{[%clk 00:02:01]} {[%emt 00:00:04]} 38. Qh2 {[%clk 00:00:10]} {[%emt 00:00:02]}
Rf1+ {[%clk 00:01:54]} {[%emt 00:00:09]} 39. Kg2 {[%clk 00:00:10]} {[%emt
00:00:02]} Rg1+ {[%clk 00:01:47]} {[%emt 00:00:09]} 40. Qxg1 {[%clk 00:00:09]}
{[%emt 00:00:04]} Bxg1 {[%clk 00:01:48]} {[%emt 00:00:01]} 41. Kxg1 {[%emt
00:00:01]} 0-1

[Event "Biel DQA Blitzn"]
[Site "Biel/Bienne, Switzerland"]
[Date "2022.07.17"]
[Round "13.4"]
[White "Sumarriva Paulin, Laura"]
[Black "Keymer, Cecilia"]
[Result "1-0"]
[TimeControl "3 min + 2 sec"]
[WhiteElo "1886"]
[BlackElo "1652"]

1. e4 {[%clk 00:03:00]} {[%emt 00:00:03]} e5 {[%clk 00:03:04]} {[%emt
00:00:01]} 2. Bc4 {[%clk 00:03:01]} Nc6 {[%clk 00:03:03]} {[%emt 00:00:03]} 3.
d3 {[%clk 00:03:02]} {[%emt 00:00:01]} Bc5 {[%clk 00:03:02]} {[%emt 00:00:03]}
4. Nf3 {[%clk 00:03:01]} {[%emt 00:00:03]} Nf6 {[%clk 00:03:01]} {[%emt
00:00:03]} 5. c3 {[%clk 00:03:02]} {[%emt 00:00:01]} a6 {[%clk 00:02:53]}
{[%emt 00:00:10]} 6. h3 {[%clk 00:03:00]} {[%emt 00:00:03]} d6 {[%clk
00:02:53]} {[%emt 00:00:02]} 7. Bb3 {[%clk 00:02:59]} {[%emt 00:00:04]} Ba7
{[%clk 00:02:49]} {[%emt 00:00:05]} 8. Nbd2 {[%clk 00:02:57]} {[%emt 00:00:04]}
h6 {[%clk 00:02:45]} {[%emt 00:00:06]} 9. Nf1 {[%clk 00:02:55]} {[%emt
00:00:03]} Ne7 {[%clk 00:02:31]} {[%emt 00:00:17]} 10. Ng3 {[%clk 00:02:53]}
{[%emt 00:00:04]} Ng6 {[%clk 00:02:32]} {[%emt 00:00:01]} 11. O-O {[%clk
00:02:39]} {[%emt 00:00:16]} O-O {[%clk 00:02:32]} {[%emt 00:00:02]} 12. d4
{[%clk 00:02:21]} {[%emt 00:00:20]} exd4 {[%clk 00:02:07]} {[%emt 00:00:27]} 13.
cxd4 {[%clk 00:02:21]} {[%emt 00:00:01]} Re8 {[%clk 00:02:03]} {[%emt
00:00:06]} 14. Re1 {[%clk 00:02:21]} {[%emt 00:00:03]} Be6 {[%clk 00:01:42]}
{[%emt 00:00:22]} 15. Qc2 {[%clk 00:02:16]} {[%emt 00:00:07]} Bxb3 {[%clk
00:01:28]} {[%emt 00:00:16]} 16. Qxb3 {[%clk 00:02:15]} {[%emt 00:00:03]} Rb8
{[%clk 00:01:20]} {[%emt 00:00:11]} 17. Bd2 {[%clk 00:01:44]} {[%emt 00:00:32]}
Qd7 {[%clk 00:01:14]} {[%emt 00:00:08]} 18. Bc3 {[%clk 00:01:40]} {[%emt
00:00:06]} Re7 {[%clk 00:00:57]} {[%emt 00:00:19]} 19. Rad1 {[%clk 00:01:39]}
{[%emt 00:00:03]} b5 {[%clk 00:00:41]} {[%emt 00:00:19]} 20. e5 {[%clk
00:01:20]} {[%emt 00:00:21]} Ne8 {[%clk 00:00:24]} {[%emt 00:00:19]} 21. a3
{[%clk 00:01:10]} {[%emt 00:00:12]} c5 {[%clk 00:00:14]} {[%emt 00:00:12]} 22.
exd6 {[%clk 00:01:04]} {[%emt 00:00:08]} Rxe1+ {[%clk 00:00:13]} {[%emt
00:00:03]} 23. Rxe1 {[%clk 00:01:05]} {[%emt 00:00:01]} Qxd6 {[%clk 00:00:09]}
{[%emt 00:00:06]} 24. Nf5 {[%clk 00:00:56]} {[%emt 00:00:11]} Qd7 {[%clk
00:00:06]} {[%emt 00:00:05]} 25. g4 {[%clk 00:00:47]} {[%emt 00:00:10]} cxd4
{[%clk 00:00:07]} {[%emt 00:00:01]} 26. Bxd4 {[%clk 00:00:47]} {[%emt
00:00:02]} Bxd4 {[%clk 00:00:08]} {[%emt 00:00:01]} 27. N3xd4 {[%clk 00:00:48]}
{[%emt 00:00:01]} Nf6 {[%clk 00:00:08]} {[%emt 00:00:02]} 28. Qb4 {[%clk
00:00:39]} {[%emt 00:00:12]} Rd8 {[%clk 00:00:08]} {[%emt 00:00:02]} 29. Nf3
{[%clk 00:00:37]} {[%emt 00:00:03]} Nf4 {[%clk 00:00:04]} {[%emt 00:00:06]} 30.
Kh2 {[%clk 00:00:34]} {[%emt 00:00:05]} Qd5 {[%clk 00:00:03]} {[%emt 00:00:03]}
31. Ne7+ {[%clk 00:00:32]} {[%emt 00:00:04]} Kh7 {[%clk 00:00:03]} {[%emt
00:00:02]} 32. Nxd5 {[%clk 00:00:33]} {[%emt 00:00:01]} N4xd5 {[%clk 00:00:04]}
{[%emt 00:00:01]} 33. Qc5 {[%clk 00:00:31]} {[%emt 00:00:02]} Rb8 {[%clk
00:00:03]} {[%emt 00:00:05]} 34. Ne5 {[%clk 00:00:31]} {[%emt 00:00:02]} Nf4
{[%clk 00:00:04]} {[%emt 00:00:01]} 35. Nxf7 {[%clk 00:00:31]} {[%emt
00:00:02]} Rf8 {[%clk 00:00:04]} {[%emt 00:00:02]} 36. Ne5 {[%clk 00:00:30]}
{[%emt 00:00:02]} Re8 {[%clk 00:00:05]} {[%emt 00:00:01]} 37. Nf3 {[%clk
00:00:30]} {[%emt 00:00:02]} Rxe1 {[%clk 00:00:06]} {[%emt 00:00:02]} 38. Nxe1
{[%clk 00:00:31]} Ne2 {[%clk 00:00:06]} {[%emt 00:00:02]} 39. Nf3 {[%clk
00:00:31]} {[%emt 00:00:02]} Nf4 {[%clk 00:00:04]} {[%emt 00:00:04]} 40. Qf5+
{[%clk 00:00:31]} {[%emt 00:00:02]} Ng6 {[%clk 00:00:04]} {[%emt 00:00:03]} 41.
Nh4 {[%clk 00:00:32]} 1-0

[ePGN "0.1;DGT LiveChess/2.2.5"]

[Event "Biel DQA Blitzn"]
[Site "Biel/Bienne, Switzerland"]
[Date "2022.07.17"]
[Round "14.1"]
[White "Cornileau, Juliette"]
[Black "Sumarriva Paulin, Laura"]
[Result "0-1"]
[TimeControl "3 min + 2 sec"]
[WhiteElo "1653"]
[BlackElo "1886"]

1. d4 {[%clk 00:03:02]} {[%emt 00:00:02]} d5 {[%clk 00:03:03]} {[%emt
00:00:01]} 2. c4 {[%clk 00:03:04]} {[%emt 00:00:01]} dxc4 {[%clk 00:03:04]}
{[%emt 00:00:01]} 3. e4 {[%clk 00:03:03]} {[%emt 00:00:02]} e5 {[%clk
00:03:04]} {[%emt 00:00:02]} 4. d5 {[%clk 00:03:02]} {[%emt 00:00:03]} Nf6
{[%clk 00:03:05]} {[%emt 00:00:01]} 5. Nc3 {[%clk 00:02:56]} {[%emt 00:00:09]}
Bb4 {[%clk 00:03:05]} {[%emt 00:00:02]} 6. Qc2 {[%clk 00:02:51]} {[%emt
00:00:06]} c6 {[%clk 00:03:00]} {[%emt 00:00:07]} 7. dxc6 {[%clk 00:02:13]}
{[%emt 00:00:40]} Nxc6 {[%clk 00:03:01]} {[%emt 00:00:02]} 8. Bxc4 {[%clk
00:02:12]} {[%emt 00:00:02]} O-O {[%clk 00:02:56]} {[%emt 00:00:07]} 9. a3
{[%clk 00:02:06]} {[%emt 00:00:08]} Ba5 {[%clk 00:02:29]} {[%emt 00:00:29]} 10.
Nge2 {[%clk 00:02:01]} {[%emt 00:00:08]} Nd4 {[%clk 00:02:19]} {[%emt
00:00:12]} 11. Qd3 {[%clk 00:01:50]} {[%emt 00:00:12]} Nxe2 {[%clk 00:01:50]}
{[%emt 00:00:30]} 12. Qxe2 {[%clk 00:01:44]} {[%emt 00:00:08]} Qc7 {[%clk
00:01:38]} {[%emt 00:00:15]} 13. O-O {[%clk 00:01:38]} {[%emt 00:00:08]} Be6
{[%clk 00:01:32]} {[%emt 00:00:08]} 14. Bxe6 {[%clk 00:01:29]} {[%emt
00:00:11]} fxe6 {[%clk 00:01:33]} {[%emt 00:00:02]} 15. Nb5 {[%clk 00:01:20]}
{[%emt 00:00:11]} Qc6 {[%clk 00:01:23]} {[%emt 00:00:12]} 16. Re1 {[%clk
00:00:34]} {[%emt 00:00:47]} Bxe1 {[%clk 00:01:21]} {[%emt 00:00:04]} 0-1

[Event "Biel DQA Blitzn"]
[Site "Biel/Bienne, Switzerland"]
[Date "2022.07.17"]
[Round "14.2"]
[White "Keymer, Cecilia"]
[Black "Moracchini, Margaux"]
[Result "0-1"]
[TimeControl "3 min + 2 sec"]
[WhiteElo "1652"]
[BlackElo "1825"]

1. d4 {[%clk 00:03:03]} {[%emt 00:10:46]} Nf6 {[%clk 00:03:03]} {[%emt
00:00:01]} 2. c4 {[%clk 00:03:04]} {[%emt 00:00:01]} g6 {[%clk 00:03:04]} 3. g3
{[%clk 00:03:06]} Bg7 {[%clk 00:03:05]} {[%emt 00:00:01]} 4. Bg2 {[%clk
00:03:07]} d6 {[%clk 00:02:57]} {[%emt 00:00:11]} 5. Nc3 {[%clk 00:03:08]}
{[%emt 00:00:01]} O-O {[%clk 00:02:52]} {[%emt 00:00:07]} 6. Nf3 {[%clk
00:03:09]} Nc6 {[%clk 00:02:35]} {[%emt 00:00:19]} 7. O-O {[%clk 00:03:10]}
{[%emt 00:00:02]} Bf5 {[%clk 00:02:34]} {[%emt 00:00:03]} 8. Nh4 {[%clk
00:02:49]} {[%emt 00:00:23]} Bd7 {[%clk 00:02:33]} {[%emt 00:00:03]} 9. e4
{[%clk 00:02:39]} {[%emt 00:00:12]} e5 {[%clk 00:02:26]} {[%emt 00:00:09]} 10.
Nf3 {[%clk 00:02:22]} {[%emt 00:00:19]} Bg4 {[%clk 00:02:10]} {[%emt 00:00:18]}
11. d5 {[%clk 00:02:09]} {[%emt 00:00:14]} Nd4 {[%clk 00:02:10]} {[%emt
00:00:02]} 12. h3 {[%clk 00:01:57]} {[%emt 00:00:14]} Bxf3 {[%clk 00:02:08]}
{[%emt 00:00:05]} 13. Bxf3 {[%clk 00:01:58]} {[%emt 00:00:01]} h5 {[%clk
00:01:46]} {[%emt 00:00:23]} 14. Bg2 {[%clk 00:01:55]} {[%emt 00:00:05]} Nd7
{[%clk 00:01:31]} {[%emt 00:00:18]} 15. Be3 {[%clk 00:01:42]} {[%emt 00:00:15]}
c5 {[%clk 00:01:25]} {[%emt 00:00:08]} 16. Qd2 {[%clk 00:01:16]} {[%emt
00:00:28]} Bf6 {[%clk 00:00:52]} {[%emt 00:00:36]} 17. Rfe1 {[%clk 00:01:05]}
{[%emt 00:00:13]} Re8 {[%clk 00:00:47]} {[%emt 00:00:07]} 18. Rad1 {[%clk
00:01:03]} {[%emt 00:00:04]} Nf8 {[%clk 00:00:46]} {[%emt 00:00:04]} 19. Bxd4
{[%clk 00:00:38]} {[%emt 00:00:27]} exd4 {[%clk 00:00:43]} {[%emt 00:00:05]} 20.
Ne2 {[%clk 00:00:36]} {[%emt 00:00:03]} Bg5 {[%clk 00:00:39]} {[%emt 00:00:06]}
21. Qd3 {[%clk 00:00:31]} {[%emt 00:00:08]} Nd7 {[%clk 00:00:34]} {[%emt
00:00:07]} 22. Qb3 {[%clk 00:00:26]} {[%emt 00:00:06]} b6 {[%clk 00:00:32]}
{[%emt 00:00:05]} 23. Nf4 {[%clk 00:00:22]} {[%emt 00:00:06]} Ne5 {[%clk
00:00:30]} {[%emt 00:00:04]} 24. Qc2 {[%clk 00:00:14]} {[%emt 00:00:10]} Qf6
{[%clk 00:00:25]} {[%emt 00:00:08]} 25. Nd3 {[%clk 00:00:09]} {[%emt 00:00:07]}
Bh6 {[%clk 00:00:15]} {[%emt 00:00:12]} 26. Nxe5 {[%clk 00:00:08]} {[%emt
00:00:03]} Qxe5 {[%clk 00:00:10]} {[%emt 00:00:06]} 27. Rd3 {[%clk 00:00:04]}
{[%emt 00:00:06]} Bg7 {[%clk 00:00:11]} {[%emt 00:00:01]} 28. Rf3 {[%clk
00:00:04]} {[%emt 00:00:01]} Re7 {[%clk 00:00:10]} {[%emt 00:00:04]} 29. Ra3
{[%clk 00:00:05]} {[%emt 00:00:01]} Rae8 {[%clk 00:00:11]} {[%emt 00:00:03]} 30.
Qd3 {[%clk 00:00:08]} {[%emt 00:00:02]} Bh6 {[%clk 00:00:07]} {[%emt 00:00:05]}
31. Kh1 {[%clk 00:00:08]} {[%emt 00:00:02]} Qf6 {[%clk 00:00:09]} 32. Kg1
{[%clk 00:00:09]} {[%emt 00:00:01]} Bg5 {[%clk 00:00:10]} 33. f4 {[%clk
00:00:06]} {[%emt 00:00:05]} Bh6 {[%clk 00:00:10]} {[%emt 00:00:01]} 34. Qf3
{[%clk 00:00:05]} {[%emt 00:00:03]} h4 {[%clk 00:00:10]} {[%emt 00:00:02]} 35.
Kh2 {[%clk 00:00:00]} {[%emt 00:00:05]} 0-1

[Event "Biel DQA Blitzn"]
[Site "Biel/Bienne, Switzerland"]
[Date "2022.07.17"]
[Round "14.3"]
[White "Avilova, Yulia"]
[Black "Ciarletta, Iris"]
[Result "0-1"]
[TimeControl "3 min + 2 sec"]
[WhiteElo "1597"]
[BlackElo "1481"]

1. Nf3 {[%clk 00:03:03]} {[%emt 00:07:56]} d5 {[%clk 00:03:03]} {[%emt
00:00:01]} 2. c4 {[%clk 00:03:05]} d4 {[%clk 00:03:02]} {[%emt 00:00:04]} 3. e3
{[%clk 00:03:05]} {[%emt 00:00:02]} dxe3 {[%clk 00:03:01]} {[%emt 00:00:03]} 4.
fxe3 {[%clk 00:03:06]} c5 {[%clk 00:03:00]} {[%emt 00:00:03]} 5. d4 {[%clk
00:03:06]} {[%emt 00:00:02]} cxd4 {[%clk 00:03:00]} {[%emt 00:00:02]} 6. exd4
{[%clk 00:03:07]} {[%emt 00:00:01]} g6 {[%clk 00:02:59]} {[%emt 00:00:03]} 7.
b3 {[%clk 00:03:04]} {[%emt 00:00:04]} Bg7 {[%clk 00:03:00]} {[%emt 00:00:02]}
8. Bb2 {[%clk 00:03:06]} Nc6 {[%clk 00:02:58]} {[%emt 00:00:04]} 9. Be2 {[%clk
00:03:06]} {[%emt 00:00:01]} Bg4 {[%clk 00:02:50]} {[%emt 00:00:10]} 10. O-O
{[%clk 00:03:06]} {[%emt 00:00:02]} Nf6 {[%clk 00:02:49]} {[%emt 00:00:03]} 11.
d5 {[%clk 00:03:01]} {[%emt 00:00:07]} Nb8 {[%clk 00:02:48]} {[%emt 00:00:03]}
12. Nbd2 {[%clk 00:03:01]} {[%emt 00:00:02]} Nbd7 {[%clk 00:02:42]} {[%emt
00:00:08]} 13. Rc1 {[%clk 00:02:47]} {[%emt 00:00:16]} O-O {[%clk 00:02:40]}
{[%emt 00:00:04]} 14. Qc2 {[%clk 00:02:44]} {[%emt 00:00:05]} Rc8 {[%clk
00:02:35]} {[%emt 00:00:07]} 15. Ne4 {[%clk 00:02:37]} {[%emt 00:00:09]} Nxe4
{[%clk 00:02:31]} {[%emt 00:00:07]} 16. Bxg7 {[%clk 00:02:37]} {[%emt
00:00:02]} Kxg7 {[%clk 00:02:28]} {[%emt 00:00:05]} 17. Qxe4 {[%clk 00:02:38]}
{[%emt 00:00:01]} Nf6 {[%clk 00:02:25]} {[%emt 00:00:05]} 18. Qe3 {[%clk
00:02:30]} {[%emt 00:00:09]} a6 {[%clk 00:02:21]} {[%emt 00:00:08]} 19. Rfd1
{[%clk 00:02:30]} {[%emt 00:00:01]} Qa5 {[%clk 00:02:14]} {[%emt 00:00:09]} 20.
Qd2 {[%clk 00:02:27]} {[%emt 00:00:05]} Qb6+ {[%clk 00:02:10]} {[%emt
00:00:06]} 21. Kh1 {[%clk 00:02:19]} {[%emt 00:00:10]} Ne4 {[%clk 00:02:06]}
{[%emt 00:00:07]} 22. Qd4+ {[%clk 00:02:12]} {[%emt 00:00:09]} Qxd4 {[%clk
00:02:06]} {[%emt 00:00:02]} 23. Rxd4 {[%clk 00:02:13]} Nf6 {[%clk 00:02:02]}
{[%emt 00:00:06]} 24. c5 {[%clk 00:02:07]} {[%emt 00:00:08]} Rfd8 {[%clk
00:01:59]} {[%emt 00:00:04]} 25. Bc4 {[%clk 00:01:44]} {[%emt 00:00:26]} Bxf3
{[%clk 00:01:50]} {[%emt 00:00:11]} 26. gxf3 {[%clk 00:01:45]} {[%emt
00:00:01]} Rxc5 {[%clk 00:01:51]} {[%emt 00:00:02]} 27. Rcd1 {[%clk 00:01:41]}
{[%emt 00:00:05]} Rd6 {[%clk 00:01:49]} {[%emt 00:00:04]} 28. b4 {[%clk
00:01:38]} {[%emt 00:00:05]} Rc8 {[%clk 00:01:47]} {[%emt 00:00:03]} 29. a4
{[%clk 00:01:39]} {[%emt 00:00:02]} Nd7 {[%clk 00:01:38]} {[%emt 00:00:11]} 30.
a5 {[%clk 00:01:25]} {[%emt 00:00:16]} Ne5 {[%clk 00:01:38]} {[%emt 00:00:02]}
31. Be2 {[%clk 00:01:24]} {[%emt 00:00:02]} Rc2 {[%clk 00:01:31]} {[%emt
00:00:09]} 32. R4d2 {[%clk 00:01:21]} {[%emt 00:00:05]} Rc8 {[%clk 00:01:23]}
{[%emt 00:00:10]} 33. Kg2 {[%clk 00:01:21]} {[%emt 00:00:02]} Rcd8 {[%clk
00:01:23]} {[%emt 00:00:02]} 34. f4 {[%clk 00:01:18]} {[%emt 00:00:04]} Nd7
{[%clk 00:01:24]} {[%emt 00:00:01]} 35. Bc4 {[%clk 00:01:16]} {[%emt 00:00:04]}
Nf6 {[%clk 00:01:25]} {[%emt 00:00:02]} 36. Kf3 {[%clk 00:01:13]} {[%emt
00:00:06]} e6 {[%clk 00:01:24]} {[%emt 00:00:03]} 37. b5 {[%clk 00:00:52]}
{[%emt 00:00:23]} exd5 {[%clk 00:01:14]} {[%emt 00:00:13]} 38. bxa6 {[%clk
00:00:46]} {[%emt 00:00:08]} bxa6 {[%clk 00:01:13]} {[%emt 00:00:03]} 39. Rd4
{[%clk 00:00:34]} {[%emt 00:00:13]} h5 {[%clk 00:01:00]} {[%emt 00:00:15]} 40.
Ke2 {[%clk 00:00:30]} {[%emt 00:00:06]} Re8+ {[%clk 00:00:57]} {[%emt
00:00:05]} 41. Kd2 {[%clk 00:00:29]} {[%emt 00:00:03]} dxc4 {[%emt 00:00:10]}
42. Rxd6 {[%clk 00:00:29]} {[%emt 00:00:02]} Ne4+ {[%clk 00:00:50]} {[%emt
00:00:01]} 43. Kc2 {[%clk 00:00:28]} {[%emt 00:00:03]} Nxd6 {[%clk 00:00:51]}
{[%emt 00:00:01]} 44. Rxd6 {[%clk 00:00:29]} Re2+ {[%clk 00:00:51]} {[%emt
00:00:03]} 45. Kc3 {[%clk 00:00:30]} {[%emt 00:00:01]} Rxh2 {[%clk 00:00:48]}
{[%emt 00:00:04]} 46. Rxa6 {[%clk 00:00:31]} {[%emt 00:00:01]} Ra2 {[%clk
00:00:48]} {[%emt 00:00:02]} 47. Ra8 {[%clk 00:00:29]} {[%emt 00:00:04]} h4
{[%clk 00:00:48]} {[%emt 00:00:01]} 48. Rd8 {[%clk 00:00:23]} {[%emt 00:00:08]}
Ra3+ {[%clk 00:00:49]} {[%emt 00:00:06]} 0-1

[Event "Biel DQA Blitzn"]
[Site "Biel/Bienne, Switzerland"]
[Date "2022.07.17"]
[Round "14.4"]
[White "Zhuang, Yongzhe"]
[Black "Tamrazyan, Gohar"]
[Result "1-0"]
[TimeControl "3 min + 2 sec"]
[WhiteElo "1681"]
[BlackElo "1733"]

1. e4 {[%clk 00:03:03]} c5 {[%clk 00:03:04]} 2. c3 {[%clk 00:03:04]} d5 {[%clk
00:03:05]} 3. exd5 {[%clk 00:03:04]} {[%emt 00:00:03]} Qxd5 {[%clk 00:03:07]} 4.
d4 {[%clk 00:03:05]} Nc6 {[%clk 00:03:08]} 5. Nf3 {[%clk 00:03:06]} {[%emt
00:00:02]} Bg4 {[%clk 00:03:09]} 6. dxc5 {[%clk 00:03:01]} {[%emt 00:00:08]}
Qxd1+ {[%clk 00:03:09]} {[%emt 00:00:02]} 7. Kxd1 {[%clk 00:03:02]} {[%emt
00:00:01]} O-O-O+ {[%clk 00:03:08]} {[%emt 00:00:03]} 8. Nbd2 {[%clk 00:03:00]}
{[%emt 00:00:05]} e5 {[%clk 00:03:09]} {[%emt 00:00:01]} 9. b4 {[%clk
00:03:01]} e4 {[%clk 00:03:04]} {[%emt 00:00:07]} 10. h3 {[%clk 00:03:01]}
{[%emt 00:00:01]} Bxf3+ {[%clk 00:02:49]} {[%emt 00:00:17]} 11. gxf3 {[%clk
00:03:01]} {[%emt 00:00:03]} exf3 {[%clk 00:02:50]} 12. Kc2 {[%clk 00:03:01]}
{[%emt 00:00:02]} Nf6 {[%clk 00:02:48]} {[%emt 00:00:04]} 13. Nxf3 {[%clk
00:02:57]} {[%emt 00:00:06]} Be7 {[%clk 00:02:39]} {[%emt 00:00:11]} 14. Be3
{[%clk 00:02:58]} {[%emt 00:00:01]} Nd5 {[%clk 00:02:40]} {[%emt 00:00:02]} 15.
Bd2 {[%clk 00:02:48]} {[%emt 00:00:11]} Bf6 {[%clk 00:02:31]} {[%emt 00:00:11]}
16. Bc4 {[%clk 00:02:40]} {[%emt 00:00:10]} Rhe8 {[%clk 00:02:10]} {[%emt
00:00:24]} 17. Rae1 {[%clk 00:02:36]} {[%emt 00:00:06]} Re7 {[%clk 00:01:26]}
{[%emt 00:00:46]} 18. Rxe7 {[%clk 00:02:30]} {[%emt 00:00:08]} Ncxe7 {[%clk
00:01:23]} {[%emt 00:00:04]} 19. a4 {[%clk 00:02:25]} {[%emt 00:00:07]} Nc6
{[%clk 00:00:57]} {[%emt 00:00:28]} 20. Rd1 {[%clk 00:02:10]} {[%emt 00:00:17]}
Ne5 {[%clk 00:00:46]} {[%emt 00:00:13]} 21. Nxe5 {[%clk 00:02:10]} {[%emt
00:00:02]} Bxe5 {[%clk 00:00:47]} 22. Bg5 {[%clk 00:01:56]} {[%emt 00:00:16]}
f6 {[%clk 00:00:39]} {[%emt 00:00:10]} 23. Bxd5 {[%clk 00:01:55]} {[%emt
00:00:03]} fxg5 {[%clk 00:00:39]} {[%emt 00:00:03]} 24. Bxb7+ {[%clk 00:01:48]}
{[%emt 00:00:09]} Kc7 {[%clk 00:00:39]} {[%emt 00:00:01]} 25. Rxd8 {[%clk
00:01:45]} {[%emt 00:00:05]} Kxd8 {[%clk 00:00:40]} 26. Be4 {[%clk 00:01:45]}
{[%emt 00:00:02]} h5 {[%clk 00:00:39]} {[%emt 00:00:03]} 27. Bf3 {[%clk
00:01:41]} {[%emt 00:00:07]} g6 {[%clk 00:00:39]} {[%emt 00:00:01]} 28. Be4
{[%clk 00:01:40]} {[%emt 00:00:03]} g4 {[%clk 00:00:34]} {[%emt 00:00:08]} 29.
hxg4 {[%clk 00:01:40]} {[%emt 00:00:01]} h4 {[%clk 00:00:35]} {[%emt 00:00:01]}
30. b5 {[%clk 00:01:35]} {[%emt 00:00:07]} g5 {[%clk 00:00:36]} 31. b6 {[%clk
00:01:34]} {[%emt 00:00:05]} 1-0